bitfinex-derivatives/quotes_BTCF0:USTF0_20250504
["timestamp","ask_amount","ask_price","bid_price","bid_amount"]
[1746373116227,0.66843866,95523.0,95522.0,0.3323646]
[1746373116528,0.66843866,95523.0,95522.0,0.123]
[1746373119833,0.5681631,95523.0,95522.0,0.123]
[1746373120132,0.3608,95523.0,95522.0,0.3323653]
[1746373120323,0.5701631,95523.0,95522.0,0.3323653]
[1746373125237,0.3608,95523.0,95522.0,0.3323653]
[1746373125430,0.2093631,95524.0,95523.0,0.2616991]
[1746373125637,0.2093631,95524.0,95523.0,0.3577991]
[1746373126230,0.2093631,95524.0,95523.0,0.4757991]
[1746373126634,0.2093631,95524.0,95523.0,0.4767991]
[1746373127537,0.2093631,95524.0,95523.0,0.4777991]
[1746373138350,0.2728593,95526.0,95525.0,0.2093588]
[1746373139043,0.3251984,95526.0,95525.0,0.2093588]
[1746373139246,0.3251984,95526.0,95525.0,0.3273588]
[1746373139751,0.3251984,95526.0,95525.0,0.3283588]
[1746373139943,0.3251984,95526.0,95525.0,0.3293588]
[1746373144454,0.2728593,95526.0,95525.0,0.3293588]
[1746373151553,0.0635,95526.0,95525.0,0.3293588]
[1746373152061,0.2728566,95526.0,95525.0,0.3293588]
[1746373166569,0.0635,95526.0,95525.0,0.3293588]
[1746373166770,0.0315,95532.0,95531.0,0.2093456]
[1746373166961,0.2093261,95540.0,95539.0,0.2093259]
[1746373167161,0.2420261,95540.0,95539.0,0.2093259]
[1746373167858,0.2420259,95540.0,95539.0,0.2404259]
[1746373168055,0.3608,95542.0,95540.0,0.2093259]
[1746373168260,0.3608,95542.0,95540.0,0.2721259]
[1746373168466,0.3608,95542.0,95540.0,0.3031259]
[1746373169060,0.3608,95542.0,95540.0,0.4211259]
[1746373169266,0.2108827,95547.0,95540.0,0.4211259]
[1746373169465,0.08197107,95541.0,95540.0,0.4211259]
[1746373169662,0.08397107,95541.0,95540.0,0.4211259]
[1746373170475,0.004,95541.0,95540.0,0.4211259]
[1746373170662,0.0303,95545.0,95544.0,0.2093171]
[1746373170860,0.0015705,95547.0,95546.0,0.2093127]
[1746373171062,0.0303,95549.0,95548.0,0.2093084]
[1746373171962,0.2802062,95549.0,95548.0,0.2093084]
[1746373172158,0.2702062,95549.0,95548.0,0.3273084]
[1746373172572,0.2772062,95549.0,95548.0,0.3273084]
[1746373187488,0.2752062,95549.0,95548.0,0.3273084]
[1746373188190,0.2732062,95549.0,95548.0,0.3273084]
[1746373188389,0.2752062,95549.0,95548.0,0.3273084]
[1746373188691,0.2722062,95549.0,95548.0,0.3273084]
[1746373188890,0.2732062,95549.0,95548.0,0.3273084]
[1746373191192,0.2722062,95549.0,95548.0,0.3273084]
[1746373191792,0.2712062,95549.0,95548.0,0.3273084]
[1746373191993,0.2732062,95549.0,95548.0,0.3273084]
[1746373192494,0.2722062,95549.0,95548.0,0.3273084]
[1746373192685,0.2742062,95549.0,95548.0,0.3273084]
[1746373193593,0.2722062,95549.0,95548.0,0.3273084]
[1746373193793,0.2742062,95549.0,95548.0,0.3273084]
[1746373194888,0.2722062,95549.0,95548.0,0.3273084]
[1746373195089,0.2742062,95549.0,95548.0,0.3273084]
[1746373195695,0.2722062,95549.0,95548.0,0.3273084]
[1746373195886,0.2752062,95549.0,95548.0,0.3273084]
[1746373197190,0.2722062,95549.0,95548.0,0.3273084]
[1746373197392,0.2742062,95549.0,95548.0,0.3273084]
[1746373198498,0.2752062,95549.0,95548.0,0.3273084]
[1746373200193,0.2742062,95549.0,95548.0,0.3273084]
[1746373200500,0.2722062,95549.0,95548.0,0.3273084]
[1746373200702,0.2742062,95549.0,95548.0,0.3273084]
[1746373201401,0.2722062,95549.0,95548.0,0.3273084]
[1746373201698,0.2742062,95549.0,95548.0,0.3273084]
[1746373202702,0.2722062,95549.0,95548.0,0.3273084]
[1746373202897,0.2742062,95549.0,95548.0,0.3273084]
[1746373204794,0.2842062,95549.0,95548.0,0.3273084]
[1746373207105,0.2852062,95549.0,95548.0,0.3273084]
[1746373207305,0.2832062,95549.0,95548.0,0.3273084]
[1746373207504,0.2852062,95549.0,95548.0,0.3273084]
[1746373213006,0.2852062,95549.0,95548.0,0.118]
[1746373213608,0.2852062,95549.0,95548.0,0.3273084]
[1746373228419,0.2832062,95549.0,95548.0,0.3273084]
[1746373229115,0.2802062,95549.0,95548.0,0.3273084]
[1746373237409,0.2802062,95549.0,95548.0,0.1748878]
[1746373238315,0.2802062,95549.0,95548.0,0.2928878]
[1746373246820,0.2802062,95549.0,95548.0,0.118]
[1746373247715,0.2802062,95549.0,95548.0,0.3273084]
[1746373248315,0.2802062,95549.0,95548.0,0.118]
[1746373248516,0.2902062,95549.0,95548.0,0.118]
[1746373250119,0.2093171,95544.0,95536.0,0.21338735]
[1746373250318,1.3501171,95544.0,95536.0,0.21338735]
[1746373250514,1.45478111,95544.0,95536.0,0.21338735]
[1746373250911,1.51818111,95544.0,95536.0,0.21338735]
[1746373251321,1.51818111,95544.0,95543.0,0.16111596]
[1746373251826,1.51818111,95544.0,95543.0,0.16211596]
[1746373252527,0.73818111,95544.0,95543.0,0.002]
[1746373260138,0.73818111,95544.0,95543.0,0.12]
[1746373263039,0.6335171,95544.0,95543.0,0.12]
[1746373274140,0.2727171,95544.0,95543.0,0.12]
[1746373274347,0.6335171,95544.0,95543.0,0.12]
[1746373283945,1.0935171,95544.0,95543.0,0.12]
[1746373293652,1.1565171,95544.0,95543.0,0.12]
[1746373298249,0.7957171,95544.0,95543.0,0.12]
[1746373298447,1.1565171,95544.0,95543.0,0.12]
[1746373307557,1.3665171,95544.0,95543.0,0.12]
[1746373307956,1.0057171,95544.0,95543.0,0.12]
[1746373308153,1.3665171,95544.0,95543.0,0.12]
[1746373319165,1.1565171,95544.0,95543.0,0.12]
[1746373327862,0.7253171,95544.0,95543.0,0.3293193]
[1746373328068,0.9031171,95544.0,95543.0,0.3293193]
[1746373328270,0.9031171,95544.0,95543.0,0.12]
[1746373328661,0.9031171,95544.0,95543.0,0.182]
[1746373328961,0.9031171,95544.0,95543.0,0.3913193]
[1746373329472,0.9031171,95544.0,95543.0,0.182]
[1746373334868,0.9352171,95544.0,95543.0,0.182]
[1746373338874,0.5744171,95544.0,95543.0,0.182]
[1746373340876,0.5744171,95544.0,95543.0,0.3913193]
[1746373352081,0.5744171,95544.0,95543.0,0.23222289]
[1746373353081,0.5744171,95544.0,95543.0,0.35022289]
[1746373353880,0.5114171,95544.0,95543.0,0.35022289]
[1746373357585,0.5114171,95544.0,95543.0,0.14090359]
[1746373357883,0.5114171,95544.0,95543.0,0.118]
[1746373358181,0.5114171,95544.0,95543.0,0.3273193]
[1746373360783,0.4514171,95544.0,95543.0,0.3273193]
[1746373361182,0.4614171,95544.0,95543.0,0.3273193]
[1746373366678,0.4614171,95544.0,95543.0,0.118]
[1746373367696,0.4614171,95544.0,95543.0,0.3273193]
[1746373372490,0.4614171,95544.0,95543.0,0.13954809]
[1746373372686,0.4614171,95544.0,95543.0,0.20054809]
[1746373373190,0.4614171,95544.0,95543.0,0.31854809]
[1746373374596,0.4614171,95544.0,95543.0,0.28844809]
[1746373382707,0.8214171,95544.0,95543.0,0.118]
[1746373382881,0.8214171,95544.0,95526.0,0.17684933]
[1746373382882,0.2093544,95527.0,95526.0,0.17684933]
[1746373383198,0.6401544,95527.0,95526.0,0.09538735]
[1746373383896,0.7035544,95527.0,95526.0,0.09538735]
[1746373384096,0.7035544,95527.0,95526.0,0.21738735]
[1746373384295,0.7045544,95527.0,95526.0,0.21738735]
[1746373384498,0.7045544,95527.0,95526.0,0.21338735]
[1746373384694,0.7055544,95527.0,95526.0,0.118]
[1746373391803,0.6855544,95527.0,95526.0,0.118]
[1746373399400,1.0955544,95527.0,95526.0,0.118]
[1746373399603,1.1155544,95527.0,95526.0,0.118]
[1746373413707,1.12610223,95527.0,95526.0,0.118]
[1746373429518,1.12610223,95527.0,95526.0,0.0653603]
[1746373429818,0.2094114,95501.0,95500.0,0.2]
[1746373430007,1.2602114,95501.0,95500.0,0.2]
[1746373430211,1.2602114,95501.0,95500.0,0.318]
[1746373430619,1.3527114,95501.0,95500.0,0.318]
[1746373432325,0.2094201,95497.0,95496.0,0.26673419]
[1746373432526,0.2094267,95494.0,95493.0,0.00157088]
[1746373432825,1.3794267,95494.0,95493.0,0.00157088]
[1746373433217,1.3794267,95494.0,95493.0,0.11957088]
[1746373441943,1.1594267,95494.0,95493.0,0.11957088]
[1746373443641,0.8194267,95494.0,95493.0,0.11957088]
[1746373446942,0.8394267,95494.0,95493.0,0.11957088]
[1746373448751,0.8414267,95494.0,95493.0,0.11957088]
[1746373449142,0.8434267,95494.0,95493.0,0.11957088]
[1746373451450,0.2094508,95483.0,95465.0,0.4248075]
[1746373451652,0.4694508,95483.0,95480.0,0.0328]
[1746373452051,0.4694508,95483.0,95481.0,1.5]
[1746373452351,0.4694508,95483.0,95482.0,0.11957097]
[1746373452547,0.5021508,95483.0,95482.0,0.11957097]
[1746373453241,0.51250434,95483.0,95482.0,0.11957097]
[1746373454346,0.52250434,95483.0,95482.0,0.11957097]
[1746373454553,0.51250434,95483.0,95482.0,0.11957097]
[1746373455144,0.52250434,95483.0,95482.0,0.11957097]
[1746373455540,0.51250434,95483.0,95482.0,0.11957097]
[1746373460454,0.51250434,95483.0,95482.0,0.32902397]
[1746373461859,0.26250434,95483.0,95482.0,0.32902397]
[1746373462249,0.27250434,95483.0,95482.0,0.32902397]
[1746373462959,0.21980434,95483.0,95482.0,0.32902397]
[1746373463145,0.0303,95484.0,95483.0,0.2094508]
[1746373463344,0.2397487,95484.0,95483.0,0.2434508]
[1746373464362,0.2397487,95484.0,95483.0,0.3931508]
[1746373464565,0.0303,95484.0,95483.0,0.3931508]
[1746373465356,0.0303,95484.0,95483.0,0.39336018]
[1746373468655,0.0303,95484.0,95483.0,0.61809218]
[1746373468860,0.0312,95499.0,95496.0,0.2094223]
[1746373469461,0.0312,95499.0,95496.0,0.2725223]
[1746373469662,0.2617827,95497.0,95496.0,0.2725223]
[1746373470048,0.2647827,95497.0,95496.0,0.2725223]
[1746373470253,0.2647827,95497.0,95496.0,0.3905223]
[1746373470461,0.27519403,95497.0,95496.0,0.3905223]
[1746373470657,0.22283893,95497.0,95496.0,0.3905223]
[1746373470861,0.01341133,95497.0,95496.0,0.4952383]
[1746373471066,0.2124201,95497.0,95496.0,0.4952383]
[1746373471654,0.2154201,95497.0,95496.0,0.4952383]
[1746373472056,0.2154201,95497.0,95496.0,1.9952383]
[1746373472365,0.006,95497.0,95496.0,1.9952383]
[1746373473962,0.2154201,95497.0,95496.0,1.9952383]
[1746373474757,0.006,95497.0,95496.0,1.9952383]
[1746373474959,0.0391,95497.0,95496.0,1.9952383]
[1746373478566,0.0391,95497.0,95496.0,1.8905223]
[1746373478765,0.0391,95497.0,95496.0,1.9952383]
[1746373479365,0.2485201,95497.0,95496.0,1.9952383]
[1746373479567,0.2797201,95497.0,95496.0,1.9952383]
[1746373480166,0.2797201,95497.0,95496.0,1.8905223]
[1746373483267,1.0397201,95497.0,95496.0,0.118]
[1746373492274,1.4005201,95497.0,95496.0,0.118]
[1746373498462,1.4634401,95497.0,95496.0,0.118]
[1746373506083,1.2434401,95497.0,95496.0,0.118]
[1746373506681,1.4534401,95497.0,95496.0,0.118]
[1746373508185,0.2094487,95484.0,95483.0,0.01629184]
[1746373509084,0.2094487,95484.0,95483.0,0.13429184]
[1746373509284,0.2728487,95484.0,95483.0,0.13429184]
[1746373509677,0.2828487,95484.0,95483.0,0.13429184]
[1746373510688,0.2828487,95484.0,95483.0,0.34374264]
[1746373511685,0.2828487,95484.0,95483.0,0.13429184]
[1746373514081,0.2828487,95484.0,95483.0,0.34374264]
[1746373519379,0.2928487,95484.0,95483.0,0.34374264]
[1746373525493,0.2928487,95484.0,95483.0,0.18834235]
[1746373526193,0.2928487,95484.0,95483.0,0.30634235]
[1746373533196,0.0834,95484.0,95483.0,0.30634235]
[1746373533385,0.0308,95484.0,95483.0,0.41634235]
[1746373533592,0.0308,95484.0,95483.0,0.43564235]
[1746373534290,0.0308,95484.0,95483.0,1.93564235]
[1746373534891,0.2417329,95492.0,95491.0,0.2094333]
[1746373535701,0.2417329,95492.0,95491.0,0.2287333]
[1746373536093,0.2437329,95492.0,95491.0,0.3467333]
[1746373536293,0.2457329,95492.0,95491.0,0.3467333]
[1746373536604,0.2457329,95492.0,95491.0,0.3274333]
[1746373539407,0.2437329,95492.0,95491.0,0.3274333]
[1746373541009,0.2447329,95492.0,95491.0,0.3274333]
[1746373558126,0.2457329,95492.0,95491.0,0.3274333]
[1746373558430,0.2437329,95492.0,95491.0,0.3274333]
[1746373558629,0.2457329,95492.0,95491.0,0.3274333]
[1746373560633,0.2437329,95492.0,95491.0,0.3274333]
[1746373560832,0.2447329,95492.0,95491.0,0.3274333]
[1746373562132,0.2457329,95492.0,95491.0,0.3274333]
[1746373567133,0.2457329,95492.0,95491.0,0.118]
[1746373567134,0.8957329,95492.0,95491.0,0.118]
[1746373567333,0.2094421,95487.0,95486.0,0.15995816]
[1746373567537,0.2994421,95487.0,95486.0,0.15995816]
[1746373567927,0.2994421,95487.0,95486.0,0.36940246]
[1746373568126,0.3613421,95487.0,95486.0,0.48740246]
[1746373568333,0.3613421,95487.0,95486.0,0.3274443]
[1746373569529,0.3623421,95487.0,95486.0,0.3274443]
[1746373570230,0.3633421,95487.0,95486.0,0.3274443]
[1746373586452,0.3633421,95487.0,95486.0,0.118]
[1746373586656,0.3633421,95487.0,95486.0,0.3274443]
[1746373586951,0.2094794,95470.0,95465.0,0.0010475]
[1746373587156,0.5802794,95470.0,95469.0,0.54007662]
[1746373588348,0.5702794,95470.0,95469.0,0.54007662]
[1746373589051,0.58103366,95470.0,95469.0,0.54307662]
[1746373589448,0.22023366,95470.0,95469.0,0.54307662]
[1746373589649,0.64263366,95470.0,95469.0,0.54307662]
[1746373589954,0.64263366,95470.0,95469.0,0.54607662]
[1746373591455,0.64263366,95470.0,95469.0,0.54507662]
[1746373591757,0.64263366,95470.0,95469.0,0.54207662]
[1746373591950,0.64263366,95470.0,95469.0,0.54507662]
[1746373593250,0.64263366,95470.0,95469.0,0.3324816]
[1746373594355,0.64263366,95470.0,95469.0,0.3314816]
[1746373595059,0.64263366,95470.0,95469.0,0.3294816]
[1746373595855,0.65263366,95470.0,95469.0,0.3294816]
[1746373600162,1.14263366,95470.0,95469.0,0.12]
[1746373600459,1.17263366,95470.0,95469.0,0.12]
[1746373602269,0.94263366,95470.0,95469.0,0.12]
[1746373613869,0.2094925,95464.0,95463.0,0.17978114]
[1746373614064,0.2594925,95464.0,95463.0,0.17978114]
[1746373614661,0.3249925,95464.0,95463.0,0.17978114]
[1746373615064,0.3249925,95464.0,95463.0,0.29778114]
[1746373616474,0.9957925,95464.0,95463.0,0.122]
[1746373617069,0.6457925,95464.0,95463.0,0.122]
[1746373617267,0.7167925,95464.0,95463.0,0.12]
[1746373617467,0.0523812,95450.0,95447.0,0.21109704]
[1746373617770,0.2095277,95448.0,95447.0,0.21109704]
[1746373618272,0.2745277,95448.0,95447.0,0.32909704]
[1746373618974,0.2745277,95448.0,95447.0,0.33209704]
[1746373619771,0.2745277,95448.0,95447.0,0.33509704]
[1746373621462,0.2745277,95448.0,95447.0,0.36659704]
[1746373621774,0.2745277,95448.0,95447.0,0.38589704]
[1746373621973,0.2745277,95448.0,95447.0,0.39589704]
[1746373622273,0.2745277,95448.0,95447.0,0.38589704]
[1746373622872,0.2745277,95448.0,95447.0,0.50589704]
[1746373622873,0.0321,95448.0,95447.0,0.50589704]
[1746373624773,0.3608,95456.0,95448.0,0.0523814]
[1746373625072,0.3608,95456.0,95455.0,0.2095123]
[1746373625474,0.3608,95456.0,95455.0,1.7095123]
[1746373626176,0.0614,95463.0,95462.0,0.2094969]
[1746373627278,0.0614,95463.0,95462.0,0.3274969]
[1746373628270,0.0309,95463.0,95462.0,0.3274969]
[1746373629271,0.6021947,95463.0,95462.0,0.3274969]
[1746373629465,0.3927,95463.0,95462.0,0.3274969]
[1746373630267,0.4242,95463.0,95462.0,0.3274969]
[1746373631277,0.4342,95463.0,95462.0,0.3274969]
[1746373631778,0.6436947,95463.0,95462.0,0.3274969]
[1746373631974,0.6336947,95463.0,95462.0,0.3274969]
[1746373632382,0.4242,95463.0,95462.0,0.3274969]
[1746373634077,0.28000214,95474.0,95467.0,0.0523711]
[1746373634276,0.31230214,95474.0,95473.0,0.5702728]
[1746373634476,0.31230214,95474.0,95473.0,0.7302728]
[1746373634667,0.032,95484.0,95483.0,0.2094508]
[1746373635170,0.032,95484.0,95483.0,0.3274508]
[1746373636178,0.037,95484.0,95483.0,0.3274508]
[1746373636381,0.042,95484.0,95483.0,0.3274508]
[1746373636576,0.042,95484.0,95483.0,0.3579508]
[1746373636779,0.2094925,95464.0,95463.0,0.21106341]
[1746373637078,0.5994925,95464.0,95463.0,0.00157131]
[1746373637271,0.2494925,95464.0,95463.0,0.00157131]
[1746373637675,0.2822925,95464.0,95463.0,0.00157131]
[1746373637875,0.3126925,95464.0,95463.0,0.21106601]
[1746373638175,0.3126925,95464.0,95463.0,0.32906601]
[1746373641879,0.3126925,95464.0,95463.0,0.11957131]
[1746373641880,0.6426925,95464.0,95463.0,0.11957131]
[1746373643281,0.2094969,95462.0,95461.0,0.18366857]
[1746373643473,0.2294969,95462.0,95461.0,0.18366857]
[1746373643670,0.2694969,95462.0,95461.0,0.18366857]
[1746373644303,0.2694969,95462.0,95461.0,0.30166857]
[1746373644583,0.2714969,95462.0,95461.0,0.30166857]
[1746373645883,0.2734969,95462.0,95461.0,0.30166857]
[1746373649888,0.2734969,95462.0,95461.0,0.118]
[1746373651279,0.2734969,95462.0,95461.0,0.3274991]
[1746373662707,0.064,95462.0,95461.0,0.4274991]
[1746373662900,0.044,95462.0,95461.0,0.6774991]
[1746373663201,0.004,95462.0,95461.0,0.6774991]
[1746373663397,0.004,95462.0,95461.0,0.6280991]
[1746373663598,0.0321,95473.0,95472.0,0.209475]
[1746373663804,0.0316,95479.0,95478.0,0.2094618]
[1746373663995,0.0642,95479.0,95478.0,0.2094618]
[1746373664199,0.0015718,95482.0,95481.0,0.2094552]
[1746373664396,0.0015718,95482.0,95481.0,0.3594552]
[1746373664595,0.0015718,95482.0,95481.0,0.3694552]
[1746373664800,0.0341718,95482.0,95481.0,0.2094552]
[1746373664996,0.0341718,95482.0,95481.0,0.2417552]
[1746373665213,0.0341718,95482.0,95481.0,0.3597552]
[1746373665712,0.0401718,95482.0,95481.0,0.3597552]
[1746373667110,0.0451718,95482.0,95481.0,0.3597552]
[1746373669208,0.0125718,95482.0,95481.0,0.7205552]
[1746373669403,0.0125718,95482.0,95481.0,0.9452872]
[1746373670308,0.0125718,95482.0,95481.0,2.4452872]
[1746373673010,0.031,95495.0,95494.0,0.2094267]
[1746373673711,0.031,95495.0,95494.0,0.3094267]
[1746373673911,0.001,95496.0,95495.0,0.2094245]
[1746373674405,0.001,95496.0,95495.0,1.7418245]
[1746373675211,0.001,95496.0,95495.0,1.8598245]
[1746373675711,0.003,95496.0,95495.0,1.8598245]
[1746373676212,0.006,95496.0,95495.0,1.8598245]
[1746373681115,0.0314,95498.0,95497.0,0.2094201]
[1746373681314,0.0314,95498.0,95497.0,0.3194201]
[1746373682215,0.0314,95498.0,95497.0,0.3274201]
[1746373682416,0.0344,95498.0,95497.0,0.3274201]
[1746373682606,0.0364,95498.0,95497.0,0.3274201]
[1746373683412,0.0354,95498.0,95497.0,0.3274201]
[1746373684216,0.0354,95498.0,95497.0,0.4321361]
[1746373687108,0.7792,95534.0,95497.0,0.552716]
[1746373687418,0.16157113,95516.0,95515.0,0.2093807]
[1746373688209,0.16157113,95516.0,95515.0,0.3273807]
[1746373689020,0.16557113,95516.0,95515.0,0.3273807]
[1746373689521,0.00557113,95516.0,95515.0,0.3273807]
[1746373689710,0.00457113,95516.0,95515.0,0.3273807]
[1746373689912,0.00957113,95516.0,95515.0,0.3273807]
[1746373691611,0.04207113,95516.0,95515.0,0.3273807]
[1746373692021,0.25144963,95516.0,95515.0,0.3273807]
[1746373696818,0.04207113,95516.0,95515.0,0.3273807]
[1746373729652,0.07427113,95516.0,95515.0,0.3273807]
[1746373732375,0.28364963,95516.0,95515.0,0.3273807]
[1746373739576,0.07427113,95516.0,95515.0,0.3273807]
[1746373743876,0.28364963,95516.0,95515.0,0.3273807]
[1746373761089,0.07427113,95516.0,95515.0,0.3273807]
[1746373761691,0.28364963,95516.0,95515.0,0.3273807]
[1746373766991,0.07427113,95516.0,95515.0,0.3273807]
[1746373767384,0.28364963,95516.0,95515.0,0.3273807]
[1746373772099,0.28364963,95516.0,95515.0,0.3578807]
[1746373772400,0.07427113,95516.0,95515.0,0.3578807]
[1746373784806,0.07427113,95516.0,95515.0,0.4778807]
[1746373785199,0.07427113,95516.0,95515.0,2.0100807]
[1746373793215,0.07427113,95516.0,95515.0,1.8900807]
[1746373794214,0.07427113,95516.0,95515.0,1.8578807]
[1746373794612,0.07427113,95516.0,95515.0,0.3578807]
[1746373798619,0.07427113,95516.0,95515.0,0.3273807]
[1746373799217,0.0727,95516.0,95515.0,0.3273807]
[1746373799720,0.1027,95516.0,95515.0,0.3273807]
[1746373802523,0.3120785,95516.0,95515.0,0.3273807]
[1746373805635,0.3120785,95516.0,95515.0,0.6881807]
[1746373806835,0.3520785,95516.0,95515.0,0.3273807]
[1746373820642,0.3520785,95516.0,95515.0,0.118]
[1746373820843,0.3120785,95516.0,95515.0,0.118]
[1746373821646,0.3120785,95516.0,95515.0,0.3273807]
[1746373822643,0.1027,95516.0,95515.0,0.3273807]
[1746373822846,0.0827,95516.0,95515.0,0.3273807]
[1746373823047,0.0727,95516.0,95515.0,0.3602807]
[1746373823349,0.0727,95516.0,95515.0,0.3914807]
[1746373827545,0.0405,95516.0,95515.0,0.3914807]
[1746373843155,0.0405,95516.0,95515.0,0.4546407]
[1746373845861,0.0405,95516.0,95515.0,0.4234407]
[1746373853170,0.0405,95516.0,95515.0,0.7842407]
[1746373854465,0.0405,95516.0,95515.0,0.4234407]
[1746373854676,0.0405,95516.0,95515.0,0.7842407]
[1746373859072,0.0405,95516.0,95515.0,0.7513407]
[1746373862877,0.0405,95516.0,95515.0,0.3905407]
[1746373863078,0.0405,95516.0,95515.0,0.7513407]
[1746373870274,0.0405,95516.0,95515.0,0.6333407]
[1746373871287,0.0405,95516.0,95515.0,0.7513407]
[1746373873076,0.0405,95516.0,95515.0,0.6333407]
[1746373874089,0.0405,95516.0,95515.0,0.7513407]
[1746373874284,0.0405,95516.0,95515.0,0.3905407]
[1746373874485,0.0405,95516.0,95515.0,0.7513407]
[1746373874987,0.0405,95516.0,95515.0,0.3905407]
[1746373875184,0.0405,95516.0,95515.0,0.7513407]
[1746373875386,0.0405,95516.0,95515.0,0.3905407]
[1746373875581,0.0405,95516.0,95515.0,0.7513407]
[1746373878090,0.0405,95516.0,95515.0,0.6333407]
[1746373882087,0.0405,95516.0,95515.0,0.7513407]
[1746373884486,0.0405,95516.0,95515.0,0.3905407]
[1746373884693,0.0405,95516.0,95515.0,0.7513407]
[1746373885087,0.0405,95516.0,95515.0,0.3905407]
[1746373885390,0.0405,95516.0,95515.0,0.6333407]
[1746373885990,0.0405,95516.0,95515.0,2.1333407]
[1746373887283,0.0405,95516.0,95515.0,1.7725407]
[1746373887484,0.0405,95516.0,95515.0,2.1333407]
[1746373888193,0.0405,95516.0,95515.0,2.2513407]
[1746373889188,0.0405,95516.0,95515.0,2.1333407]
[1746373901507,0.0405,95516.0,95515.0,2.0701807]
[1746373909612,0.0405,95516.0,95515.0,2.1009807]
[1746373909909,0.0405,95516.0,95515.0,2.1639407]
[1746373920112,0.0405,95516.0,95515.0,2.2819407]
[1746373921211,0.0405,95516.0,95515.0,2.1639407]
[1746373923410,0.0405,95516.0,95515.0,2.2819407]
[1746373924118,0.0405,95516.0,95515.0,2.2189807]
[1746373924308,0.0405,95516.0,95515.0,2.1009807]
[1746373932125,0.0405,95516.0,95515.0,2.2189807]
[1746373933729,0.0405,95516.0,95515.0,2.2819407]
[1746373935128,0.0405,95516.0,95515.0,2.1639407]
[1746373938232,0.0405,95516.0,95515.0,2.2819407]
[1746373939235,0.0405,95516.0,95515.0,2.1639407]
[1746373942330,0.0405,95516.0,95515.0,1.8031407]
[1746373942628,0.0405,95516.0,95515.0,2.1639407]
[1746373943826,0.0405,95516.0,95515.0,1.8031407]
[1746373944031,0.0405,95516.0,95515.0,2.1639407]
[1746373945328,0.0405,95516.0,95515.0,1.8031407]
[1746373945531,0.0405,95516.0,95515.0,2.1639407]
[1746373949146,0.0405,95516.0,95515.0,2.2819407]
[1746373952232,0.0405,95516.0,95515.0,2.1639407]
[1746373952542,0.0405,95516.0,95515.0,1.8031407]
[1746373954145,0.0405,95516.0,95515.0,1.9211407]
[1746373964241,0.0405,95516.0,95515.0,1.8031407]
[1746373965246,0.0405,95516.0,95515.0,1.9211407]
[1746373968761,0.0405,95516.0,95515.0,1.8903407]
[1746373969147,0.0405,95516.0,95515.0,1.7723407]
[1746373970956,0.0405,95516.0,95515.0,1.56296]
[1746373971356,0.0405,95516.0,95515.0,1.7723407]
[1746373980456,0.0405,95516.0,95515.0,1.7093807]
[1746373980763,0.2598785,95516.0,95515.0,0.2093807]
[1746373981855,0.2914785,95516.0,95515.0,0.2093807]
[1746373982662,0.3014785,95516.0,95515.0,0.2093807]
[1746373983062,0.2914785,95516.0,95515.0,0.2093807]
[1746373995371,0.2914785,95516.0,95513.0,0.0523462]
[1746373995565,0.2419822,95515.0,95514.0,0.2093829]
[1746373996064,0.2740822,95515.0,95514.0,0.2422829]
[1746373996472,0.2740822,95515.0,95514.0,0.6030829]
[1746373996872,0.2770822,95515.0,95514.0,0.6030829]
[1746373997477,0.2820822,95515.0,95514.0,0.2422829]
[1746373997962,0.2820822,95515.0,95514.0,0.6030829]
[1746374004987,0.2820822,95515.0,95514.0,0.3937]
[1746374005687,0.2820822,95515.0,95514.0,0.6030829]
[1746374014289,0.3020822,95515.0,95514.0,0.6030829]
[1746374020687,0.3220822,95515.0,95514.0,0.6030829]
[1746374020888,0.3020822,95515.0,95514.0,0.6030829]
[1746374025398,0.3020822,95515.0,95514.0,0.5701829]
[1746374026592,0.3020822,95515.0,95514.0,0.2093829]
[1746374026795,0.3020822,95515.0,95514.0,0.2424829]
[1746374040204,0.3020822,95515.0,95514.0,0.2093829]
[1746374041305,0.3020822,95515.0,95514.0,0.2425829]
[1746374059319,0.3020822,95515.0,95514.0,0.0332]
[1746374059618,0.3020822,95515.0,95514.0,0.2425829]
[1746374067020,0.2820822,95515.0,95514.0,0.2425829]
[1746374115570,0.2820822,95515.0,95514.0,0.2093829]
[1746374116571,0.2920822,95515.0,95514.0,0.2093829]
[1746374117772,0.2820822,95515.0,95514.0,0.2093829]
[1746374119072,0.2820822,95515.0,95514.0,0.2414829]
[1746374123976,0.2920822,95515.0,95514.0,0.2414829]
[1746374126372,0.2820822,95515.0,95514.0,0.2414829]
[1746374135080,0.2920822,95515.0,95514.0,0.2414829]
[1746374143188,0.2920822,95515.0,95514.0,0.25695321]
[1746374144376,0.2920822,95515.0,95514.0,0.2414829]
[1746374144882,0.2920822,95515.0,95514.0,0.0321]
[1746374145684,0.2920822,95515.0,95514.0,0.2414829]
[1746374149701,0.2820822,95515.0,95514.0,0.2414829]
[1746374156705,0.0727,95515.0,95509.0,0.52083774]
[1746374156913,0.2093916,95510.0,95509.0,0.16003774]
[1746374157202,0.7193916,95510.0,95509.0,0.16003774]
[1746374157905,0.7193916,95510.0,95509.0,0.36943154]
[1746374157906,0.7812916,95510.0,95509.0,0.36943154]
[1746374158595,0.7852916,95510.0,95509.0,0.36943154]
[1746374158794,0.7882916,95510.0,95509.0,0.36943154]
[1746374163007,1.1490916,95510.0,95509.0,0.36943154]
[1746374163210,1.1490916,95510.0,95509.0,0.2093938]
[1746374164199,0.7882916,95510.0,95509.0,0.2093938]
[1746374164400,1.1490916,95510.0,95509.0,0.2093938]
[1746374173912,1.4790916,95510.0,95509.0,0.2093938]
[1746374174214,0.7597,95510.0,95509.0,0.2093938]
[1746374174517,0.007,95510.0,95509.0,0.3093938]
[1746374174714,0.007,95510.0,95509.0,0.3742938]
[1746374175213,0.007,95510.0,95509.0,0.4922938]
[1746374176015,0.027,95510.0,95509.0,0.4922938]
[1746374183220,0.0602,95510.0,95509.0,0.4922938]
[1746374186529,0.0402,95510.0,95509.0,0.8530938]
[1746374187626,0.0402,95510.0,95509.0,0.8204938]
[1746374187827,0.0502,95510.0,95509.0,0.7204938]
[1746374191218,0.0502,95510.0,95509.0,0.6024938]
[1746374192128,0.0502,95510.0,95509.0,0.7204938]
[1746374197129,0.0502,95510.0,95509.0,0.6024938]
[1746374198130,0.0502,95510.0,95509.0,0.7204938]
[1746374199425,0.0502,95510.0,95509.0,0.6881938]
[1746374200130,0.0502,95510.0,95509.0,0.5701938]
[1746374201621,0.0502,95510.0,95509.0,0.6024938]
[1746374201833,0.0502,95510.0,95509.0,0.2416938]
[1746374202133,0.0502,95510.0,95509.0,0.3596938]
[1746374203235,0.0502,95510.0,95509.0,0.2416938]
[1746374206235,0.0502,95510.0,95509.0,0.3596938]